[Event "Istanbul Open 2018"]
[Site "Istanbul"]
[Date "2018.09.04"]
[Round "4"]
[White "Niyazmetov, Hudoshukur"]
[Black "Acarbay, Aydin"]
[Result "0-1"]
[ECO "D17"]
[WhiteElo "2008"]
[BlackElo "1894"]
[Annotator "NA RC"]
[PlyCount "98"]
[EventDate "2018.09.02"]
[EventType "swiss"]
[EventCountry "TUR"]
[SourceTitle "playchess.com"]
[Source "ChessBase"]
[SourceQuality "1"]
[TimeControl "5400+30"]

1. d4 {[%emt 0:00:30]} d5 {[%emt 0:00:30]} 2. Nf3 {[%emt 0:00:00]} Nf6 {[%emt 0:00:00]} 3. c4 {[%emt 0:00:00]} c6 {[%emt 0:00:00]} 4. Nc3 {[%emt 0:00:00]} dxc4 {[%emt 0:00:30]} 5. a4 {[%emt 0:00:00]} Bf5 {[%emt 0:00:30]} 6. Ne5 {[%emt 0:03:30]} Nbd7 {[%emt 0:00:00]} 7. Nxc4 {[%emt 0:01:30]} Nb6 {[%emt 0:00:00]} 8. Ne5 {[%emt 0:03:30]} a5 {[%emt 0:00:30]} 9. f3 {[%emt 0:17:30] LiveBook: 423 Games D17: Slav Defence: 5 a4 Bf5: Lines with 6 Nh4 and 6 Ne5} (9. e3 Nbd7 10. Bd3 Bxd3 11. Nxd3 g6 12. Qb3 Qb6 13. Qxb6 Nxb6 14. Ke2 Bg7 15. Nc5 Ra7 16. e4 O-O {½-½ (49) Vidit,S (2707)-Bu,X (2725) Liaocheng 2018}) 9... Nfd7 {[%emt 0:02:30]} 10. Nxd7 {[%emt 0:07:30]} Bxd7 {[%emt 0:20:30]} 11. e4 {[%emt 0:01:30]} e5 {[%emt 0:06:30]} 12. dxe5 $146 {[%emt 0:04:30]} ({Predecessor:} 12. Be3 Bb4 13. dxe5 Qc7 14. Be2 Be6 15. Kf2 Nd7 16. f4 Nc5 {0-1 (50) Sargsyan,S (2440)-Yegiazaryan,A (2243) Yerevan 2016}) 12... Bc5 {[%emt 0:01:30]} 13. Bf4 {[%emt 0:00:30]} Qh4+ {[%emt 0:46:30]} 14. Bg3 {[%emt 0:50:00]} Qe7 {[%emt 0:12:30]} 15. Bd3 {[%emt 0:02:30]} Rd8 {[%emt 0:06:30]} 16. Qe2 {[%emt 0:17:30]} Be6 {[%emt 0:03:30]} 17. O-O-O {[%emt 1:24:25]} Bd4 {[%emt 1:16:30]} 18. Bf2 {[%emt 1:25:11]} Bxf2 {[%emt 0:01:24]} 19. Qxf2 {[%emt 0:00:26]} Qb4 {[%emt 0:00:23]} 20. Bb5 {[%emt 0:03:34]} Rxd1+ {[%emt 0:04:52]} 21. Rxd1 {[%emt 0:00:05]} Nd7 {[%emt 0:00:11]} 22. Be2 {[%emt 0:00:30]} Nc5 {[%emt 0:01:15]} 23. Kb1 {[%emt 0:06:37]} O-O {[%emt 1:32:34]} 24. Qd4 {[%emt 1:40:15]} g6 {[%emt 1:35:55]} 25. f4 {[%emt 0:00:25]} Bb3 {[%emt 0:01:51]} 26. Rd2 {[%emt 0:00:01]} Bxa4 {[%emt 0:01:34]} 27. Qxb4 {[%emt 0:00:43]} axb4 {[%emt 0:00:05]} 28. Nxa4 {[%emt 0:00:00]} Nxa4 {[%emt 0:00:09]} 29. Rd7 {[%emt 0:01:03]} Nc5 {[%emt 0:00:42]} 30. Rd4 {[%emt 0:00:23]} Ne6 {[%emt 0:00:40]} 31. Rxb4 {[%emt 0:00:36]} Nxf4 {[%emt 0:00:04]} 32. Bf1 {[%emt 0:00:08]} b5 {[%emt 0:00:36]} 33. Rd4 {[%emt 0:00:48]} Re8 {[%emt 0:00:51]} 34. g3 {[%emt 0:00:42]} Ne6 {[%emt 0:01:15]} 35. Rd6 {[%emt 0:00:08]} Rc8 {[%emt 0:00:03]} 36. Bh3 {[%emt 0:00:10]} Re8 {[%emt 0:00:33]} 37. Rxc6 {[%emt 0:00:24]} Ng5 $14 {[%emt 0:00:28]} 38. Bg2 {[%emt 0:01:28]} Rxe5 {[%emt 0:00:10]} 39. Rb6 {[%emt 0:01:03]} Nxe4 {[%emt 0:01:31]} 40. Bxe4 {[%emt 0:00:07]} Rxe4 {[%emt 0:00:01]} 41. Rxb5 {[%emt 0:00:01]} Re2 {[%emt 0:00:11]} 42. Rb3 {[%emt 0:01:49]} Rxh2 {[%emt 0:00:05]} 43. Ka2 {[%emt 0:00:16]} h5 {[%emt 0:01:02]} 44. Re3 {[%emt 0:00:57]} Rh3 {[%emt 0:01:07]} 45. b4 {[%emt 0:00:03]} h4 {[%emt 0:01:32]} 46. b5 {[%emt 0:00:30]} Rxg3 {[%emt 0:00:20]} 47. Re8+ {[%emt 0:00:31]} Kg7 {[%emt 0:00:03]} 48. b6 {[%emt 0:00:08]} Rg5 {[%emt 0:00:17]} 49. Rb8 {[%emt 0:01:20]} Rb5 {[%emt 0:00:11]} 0-1

[Event "Istanbul Open 2018"]
[Site "Istanbul"]
[Date "2018.09.04"]
[Round "4"]
[White "Akin, Yagiz Cinar"]
[Black "Emir, Emirhan"]
[Result "1/2-1/2"]
[ECO "C07"]
[WhiteElo "1963"]
[BlackElo "1852"]
[Annotator "NA RC"]
[PlyCount "97"]
[EventDate "2018.09.02"]
[EventType "swiss"]
[EventCountry "TUR"]
[SourceTitle "playchess.com"]
[Source "ChessBase"]
[SourceQuality "1"]
[TimeControl "5400+30"]

{[%evp 10,97,-19,-7,4,-3,5,2,17,5,27,1,7,-6,28,28,31,12,32767,20,52,14,17,7,34,52,25,0,59,0,12,0,32767,32767,32767,32767,32767,114,14,18,51,24,40,41,61,39,49,32767,80,100,102,64,110,32767,32767,128,140,141,142,127,318,247,32767,32767,32767,32767,32767,32767,32767,32767,32767,0,32767,32767,32767,32767,32767,32767,32767,32767,32767,32767,32767,103,32767,32767,32767,0,0,0]} 1. e4 {[%emt 0:00:30]} e6 {[%emt 0:00:30]} 2. d4 {[%emt 0:00:30]} d5 {[%emt 0:00:00]} 3. Nd2 {[%emt 0:00:00]} c5 {[%emt 0:00:00]} 4. c3 {[%emt 0:00:00]} cxd4 {[%emt 0:00:30]} 5. cxd4 {[%emt 0:00:00]} dxe4 {[%emt 0:00:30]} 6. Nxe4 {[%emt 0:00:00]} Bb4+ {[%emt 0:01:30]} 7. Nc3 {[%emt 0:00:00] C07: Französische Verteidigung (Tarrasch-Variante)} Bd7 {[%emt 0:02:30]} (7... Nf6 8. Nf3 O-O 9. Bd3 b6 10. O-O Bb7 11. Bg5 {½-½ (11) Pantsulaia,L (2563)-Mchedlishvili,M (2645) Mumbai 2013}) 8. Nf3 {[%emt 0:01:00]} Nf6 {[%emt 0:01:30]} 9. a3 $146 {[%emt 0:04:30]} ({Vorgänger:} 9. Bg5 h6 10. Bxf6 Qxf6 11. Ne5 O-O 12. Be2 Bc6 13. O-O Rd8 14. Bf3 Bxf3 15. Nxf3 {0-1 (44) Butvilaite,B (1596)-Zalimaite,I (1799) Vilnius 2015}) 9... Be7 {[%emt 0:01:30]} 10. Bd3 {[%emt 0:01:30]} Bc6 {[%emt 0:01:30]} 11. O-O {[%emt 0:01:30]} O-O {[%emt 0:01:30]} 12. Ne5 {[%emt 0:02:30]} Nbd7 {[%emt 0:05:30]} 13. Nxc6 {[%emt 0:03:30]} bxc6 {[%emt 0:00:00]} 14. Bf4 {[%emt 0:08:30]} Nb6 {[%emt 0:02:00]} 15. Re1 {[%emt 0:03:30]} Nbd5 {[%emt 0:02:30]} 16. Nxd5 {[%emt 0:03:30]} Qxd5 {[%emt 0:01:30]} 17. Be5 {[%emt 0:05:30]} Rad8 {[%emt 0:03:30]} 18. Re3 {[%emt 0:04:30]} g6 {[%emt 0:06:30]} 19. Rh3 {[%emt 0:02:30]} c5 {[%emt 0:04:30]} 20. Qc1 {[%emt 0:46:00]} cxd4 {[%emt 0:10:30]} 21. Bxf6 {[%emt 0:00:30]} Bxf6 {[%emt 0:00:30]} 22. Qh6 {[%emt 0:00:30]} Rfe8 {[%emt 0:00:30]} 23. Qxh7+ {[%emt 0:00:00]} Kf8 {[%emt 0:00:00]} 24. Rf3 {[%emt 0:00:30]} Qe5 {[%emt 0:04:30]} 25. Kf1 {[%emt 0:00:30]} (25. h4 $5 {[%cal Rd3g6]}) 25... Ke7 {[%emt 0:04:30]} 26. Bxg6 {[%emt 0:04:30]} Rf8 {[%emt 0:00:30]} 27. Re1 {[%emt 0:01:30]} Qg5 $1 {[%emt 0:00:30]} 28. Rg3 {[%emt 0:11:30]} Qd2 {[%emt 0:04:30]} 29. Rb3 {[%emt 0:01:30]} Rd7 {[%emt 0:08:30]} 30. h3 {[%emt 0:05:30]} Qg5 {[%emt 0:01:30]} ({Black should try} 30... Rc7 $14) 31. Bd3 {[%emt 0:01:30]} Qd5 {[%emt 0:00:30]} 32. Rb5 {[%emt 0:01:30]} Qd6 {[%emt 0:00:30]} 33. g3 {[%emt 0:00:30]} Qc6 {[%emt 1:24:30]} 34. Qe4 {[%emt 0:00:30]} Qc7 $2 {[%emt 0:00:30]} (34... Rc8 $16 35. Qxc6 Rxc6) 35. Rf5 {[%emt 0:02:30]} Rh8 {[%emt 0:01:30]} 36. Qf3 {[%emt 0:01:30]} Rh6 {[%emt 0:01:31]} 37. g4 {[%emt 0:03:30]} Qh2 {[%emt 0:01:12]} 38. g5 {[%emt 0:00:30]} Rxh3 {[%emt 0:00:29]} 39. gxf6+ {[%emt 0:00:30]} Kd6 {[%emt 0:00:01]} 40. Qf4+ {[%emt 0:00:00]} Qxf4 {[%emt 0:00:52]} 41. Rxf4 {[%emt 0:00:00]} Rxd3 {[%emt 0:01:24]} 42. Ke2 {[%emt 0:00:30]} Ke5 {[%emt 0:03:19]} 43. Kxd3+ {[%emt 0:00:00]} Kxf4 {[%emt 0:00:04]} 44. Re4+ {[%emt 0:00:00]} Kf3 {[%emt 1:40:58]} 45. Rxd4 {[%emt 0:00:00]} Rb7 {[%emt 0:00:01]} 46. b4 {[%emt 0:00:00]} e5 {[%emt 0:00:00]} 47. Rd5 {[%emt 0:01:30]} Kf4 {[%emt 1:43:17]} 48. f3 $2 {[%emt 1:32:00]} (48. Ra5 $18) 48... Rb6 {[%emt 0:00:30]} 49. Ke2 $11 {[%emt 0:00:30]} 1/2-1/2

[Event "Istanbul Open 2018"]
[Site "Istanbul"]
[Date "2018.09.04"]
[Round "4"]
[White "Tirak, Mert"]
[Black "Kelpetin, Umut Can"]
[Result "1/2-1/2"]
[ECO "B06"]
[WhiteElo "1941"]
[BlackElo "1798"]
[Annotator "NA RC"]
[PlyCount "139"]
[EventDate "2018.09.02"]
[EventType "swiss"]
[EventCountry "TUR"]
[SourceTitle "playchess.com"]
[Source "ChessBase"]
[SourceQuality "1"]
[TimeControl "5400+30"]

{[%evp 8,137,-23,-22,-26,-13,0,-10,6,21,21,-14,-14,-16,17,-29,-32,-20,-22,-22,-9,-8,6,0,17,30,9,10,75,79,32767,32767,32767,32767,32767,50,65,47,32767,43,32767,32767,32767,44,32767,32767,32767,32767,32767,32767,32767,174,214,32767,32767,59,59,55,61,36,32767,16,25,22,36,22,40,16,54,22,38,20,37,32767,32767,32767,32767,32767,32767,10,32767,32767,32767,32767,32767,32767,32767,32767,32767,32767,32767,32767,32767,32767,32767,32767,32767,32767,32767,32767,580,324,197,32767,32767,32767,32767,32767,82,82,32767,141,82,32767,32767,32767,32767,64,53,48,32767,32767,32767,32767,32767,0,0,0,53,32767,32767,8]} 1. e4 {[%emt 0:00:30]} g6 {[%emt 0:03:30]} 2. d4 {[%emt 0:00:30]} Bg7 {[%emt 0:00:30]} 3. g3 {[%emt 0:00:30]} d5 {[%emt 0:03:30]} 4. e5 {[%emt 0:12:30]} c5 {[%emt 0:03:30]} 5. c3 {[%emt 0:02:30]} Nc6 {[%emt 0:01:30]} 6. Bg2 {[%emt 0:00:30]} cxd4 {[%emt 0:02:30]} 7. cxd4 {[%emt 0:00:00]} Nh6 {[%emt 0:06:30] B06: Modern Defence} 8. Nc3 {[%emt 0:00:00] LiveBook: 4 Games} Nf5 {[%emt 0:05:30]} 9. Nge2 {[%emt 0:02:30]} e6 {[%emt 0:00:30]} 10. O-O {[%emt 0:03:30]} b6 $146 {[%emt 0:15:00]} ({Predecessor:} 10... O-O 11. Be3 f6 12. exf6 Qxf6 13. Nb5 a6 14. Nc7 Ra7 15. Nf4 Qe7 16. Ncxd5 exd5 17. Nxd5 Qd8 18. Qd2 Nxe3 19. fxe3 {0-1 (40) McLaren,B (2222)-Chandler,M (2540) Auckland 2008}) 11. f4 {[%emt 0:08:30]} h5 {[%emt 0:00:30]} 12. b4 {[%emt 0:38:00]} Bd7 {[%emt 0:02:30]} 13. a3 {[%emt 0:02:30]} Rc8 {[%emt 0:01:30]} 14. Qd3 {[%emt 0:01:30]} Qc7 {[%emt 0:59:00]} 15. Bd2 {[%emt 0:03:30]} Qb7 {[%emt 0:02:30]} 16. h3 {[%emt 0:07:30]} a6 {[%emt 0:02:30]} 17. g4 {[%emt 0:04:30]} hxg4 {[%emt 0:01:30]} 18. hxg4 {[%emt 0:00:30]} Nh4 {[%emt 0:00:30]} 19. Bh1 {[%emt 0:01:30]} Na7 {[%emt 0:06:30]} 20. Rf2 {[%emt 0:03:30]} Nb5 {[%emt 0:01:30]} 21. Rh2 {[%emt 0:00:30]} (21. Nd1 $16) 21... Qc7 {[%emt 0:04:30]} 22. Qg3 {[%emt 0:06:30]} g5 {[%emt 0:02:38]} 23. fxg5 {[%emt 0:04:30]} Ng6 {[%emt 0:00:30]} 24. Rxh8+ {[%emt 0:00:30]} Bxh8 {[%emt 0:00:30]} 25. Rf1 {[%emt 1:19:30]} Nxc3 {[%emt 0:06:49]} 26. Nxc3 {[%emt 0:01:30]} Bb5 {[%emt 0:01:08]} 27. Nxb5 {[%emt 0:00:30]} axb5 {[%emt 0:00:02]} 28. Rc1 {[%emt 0:01:30]} Qd7 {[%emt 0:01:04]} 29. Rxc8+ {[%emt 0:08:50]} Qxc8 {[%emt 0:00:55]} 30. Qc3 {[%emt 1:33:15]} Qc4 {[%emt 1:39:28]} 31. Qxc4 {[%emt 1:34:46]} (31. Qe3 $16) 31... bxc4 {[%emt 0:00:29]} 32. b5 {[%emt 0:00:30]} Bg7 {[%emt 0:00:54]} 33. a4 {[%emt 0:02:30]} Bf8 {[%emt 0:01:33]} 34. Bf3 {[%emt 0:01:32]} Be7 {[%emt 0:00:51]} 35. Kf2 {[%emt 0:00:14]} Bd8 {[%emt 0:00:38]} 36. Bd1 {[%emt 0:00:15]} Kf8 {[%emt 0:03:01]} 37. Bc2 {[%emt 0:00:04]} Ne7 {[%emt 0:00:59]} 38. Bb4 {[%emt 0:00:11]} Ke8 {[%emt 0:00:26]} 39. Ke2 {[%emt 0:06:23]} Kd7 {[%emt 0:00:28]} 40. Bxe7 {[%emt 0:00:47]} Bxe7 {[%emt 0:00:24]} 41. g6 {[%emt 0:00:02]} fxg6 {[%emt 0:00:18]} 42. Bxg6 {[%emt 0:00:05]} Bb4 {[%emt 0:00:24]} 43. Bf7 {[%emt 0:01:32]} Bc3 {[%emt 0:00:52]} 44. Ke3 {[%emt 0:00:04]} Bb2 {[%emt 0:00:37]} 45. a5 {[%emt 0:01:15]} bxa5 {[%emt 0:00:32]} 46. b6 {[%emt 0:00:03]} Bc1+ {[%emt 0:00:15]} 47. Ke2 {[%emt 0:00:14]} Bb2 {[%emt 0:00:22]} 48. Bxe6+ {[%emt 0:00:28]} Kc6 {[%emt 0:00:15]} 49. Bxd5+ {[%emt 0:00:16]} Kxb6 {[%emt 0:00:07]} 50. Ke3 {[%emt 0:00:31]} Bc1+ {[%emt 0:00:33]} 51. Ke4 {[%emt 0:00:11]} c3 {[%emt 0:00:23]} 52. Kd3 {[%emt 0:00:16]} Bd2 {[%emt 0:00:51]} 53. Bb3 {[%emt 0:00:53]} Kb5 {[%emt 0:00:53]} 54. Bc4+ {[%emt 0:02:15]} Kc6 {[%emt 0:00:54]} 55. g5 {[%emt 0:00:44]} Bxg5 {[%emt 0:00:18]} 56. Kxc3 {[%emt 0:00:02]} Bf4 {[%emt 0:00:29]} 57. Kd3 {[%emt 0:00:15]} a4 {[%emt 0:00:38]} 58. Ke4 {[%emt 0:00:09]} Bg3 {[%emt 0:00:19]} 59. Ba2 {[%emt 0:00:36]} Bf2 {[%emt 0:00:32]} 60. d5+ {[%emt 0:00:21]} Kd7 {[%emt 0:00:22]} 61. Kf5 {[%emt 0:01:42]} Bd4 {[%emt 0:00:49]} 62. Bc4 {[%emt 0:01:05]} a3 $1 {[%emt 0:00:10]} 63. Ke4 {[%emt 0:00:17]} Bc5 {[%emt 0:00:17]} 64. Kf5 {[%emt 0:00:12]} Bd4 {[%emt 0:00:06]} 65. Kf6 {[%emt 0:00:11]} Bc3 $1 {[%emt 0:00:27]} 66. Bb5+ {[%emt 0:00:17]} (66. Bb3 $14) 66... Kd8 {[%emt 0:00:35]} 67. Bc4 $11 {[%emt 0:00:05]} Kd7 {[%emt 0:00:07]} 68. d6 {[%emt 0:00:16]} Bd4 {[%emt 0:00:30]} 69. Kf5 {[%emt 0:00:16]} Bc5 {[%emt 0:00:33]} 70. Ke4 {[%emt 0:00:38]} 1/2-1/2

[Event "Istanbul Open 2018"]
[Site "Istanbul"]
[Date "2018.09.04"]
[Round "4"]
[White "Ozsakallioglu, Akin"]
[Black "Abishli, Oghuz"]
[Result "1/2-1/2"]
[ECO "B39"]
[WhiteElo "1861"]
[BlackElo "2099"]
[Annotator "NA RC"]
[PlyCount "104"]
[EventDate "2018.09.02"]
[EventType "swiss"]
[EventCountry "TUR"]
[SourceTitle "playchess.com"]
[Source "ChessBase"]
[SourceQuality "1"]
[TimeControl "5400+30"]

1. e4 {[%emt 0:00:30]} c5 {[%emt 0:00:30]} 2. Nf3 {[%emt 0:00:00]} g6 {[%emt 0:00:00]} 3. d4 {[%emt 0:00:00]} cxd4 {[%emt 0:00:00]} 4. Nxd4 {[%emt 0:00:00]} Bg7 {[%emt 0:00:30]} 5. c4 {[%emt 0:01:00]} Nc6 {[%emt 0:00:30]} 6. Be3 {[%emt 0:01:30]} Nf6 {[%emt 0:00:30]} 7. Nc3 {[%emt 0:00:00]} Ng4 {[%emt 0:01:30]} 8. Qxg4 {[%emt 0:00:00]} Nxd4 {[%emt 0:00:00]} 9. Qd1 {[%emt 0:00:00]} Ne6 {[%emt 0:01:00]} 10. Be2 {[%emt 0:03:00]} Bxc3+ {[%emt 0:03:30]} 11. bxc3 {[%emt 0:00:30] LiveBook: 8 Games} Qc7 {[%emt 0:00:30] B39: Sicilian: Maroczy Bind with 5...Bg7 and 7...Ng4} 12. O-O {[%emt 0:03:30]} b6 {[%emt 0:02:30]} 13. Bg4 $146 {[%emt 0:11:30]} ({Predecessor:} 13. f4 Bb7 14. f5 Nc5 15. Bd4 f6 16. Bf3 O-O-O 17. Qe2 d6 18. a4 a5 19. Rfb1 {0-1 (59) Slovak,K (2142)-Sousa,A (2411) Prague 2016}) 13... Qxc4 {[%emt 0:36:30]} 14. Bxe6 {[%emt 0:01:30]} Qxe6 {[%emt 0:00:30]} 15. Bd4 {[%emt 0:00:00]} O-O {[%emt 0:01:30]} 16. Re1 {[%emt 0:01:00]} f6 {[%emt 0:59:00]} 17. f4 {[%emt 0:00:30]} d6 {[%emt 0:01:30]} 18. Qb3 {[%emt 0:06:30]} Qf7 {[%emt 0:02:30]} 19. Qxf7+ {[%emt 0:01:30]} Kxf7 {[%emt 0:00:00]} 20. e5 {[%emt 0:00:00]} dxe5 {[%emt 0:00:30]} 21. fxe5 {[%emt 0:00:30]} f5 {[%emt 0:00:30]} 22. a4 {[%emt 0:00:30]} Be6 {[%emt 0:05:30]} 23. Reb1 {[%emt 0:01:30]} Bc4 {[%emt 0:00:30]} 24. Rb4 {[%emt 0:06:30]} Rfc8 {[%emt 0:01:30]} 25. Kf2 {[%emt 0:00:30]} Rc7 {[%emt 0:01:30]} 26. Ke3 {[%emt 0:02:30]} g5 {[%emt 0:08:30]} 27. Kf2 {[%emt 0:01:30]} f4 {[%emt 0:05:02]} 28. Re1 {[%emt 0:03:30]} e6 {[%emt 0:06:37]} 29. h4 {[%emt 0:01:30]} Kg6 {[%emt 0:00:13]} 30. hxg5 {[%emt 0:02:30]} Kxg5 {[%emt 0:00:05]} 31. Re4 {[%emt 0:00:30]} (31. g3 $17 {keeps fighting.}) 31... Rac8 {[%emt 0:01:59]} 32. g3 {[%emt 0:01:30]} fxg3+ {[%emt 0:00:57]} 33. Kxg3 {[%emt 0:00:00]} h5 {[%emt 0:00:47]} 34. Rf4 {[%emt 0:00:00]} Bd5 {[%emt 1:46:21]} 35. Rf6 {[%emt 1:04:30]} h4+ {[%emt 0:00:30]} 36. Kf2 {[%emt 0:00:30]} Rxc3 {[%emt 0:00:30]} 37. Bxc3 {[%emt 0:00:30]} Rxc3 {[%emt 0:00:30]} 38. Rf7 {[%emt 0:00:30]} h3 {[%emt 0:00:30]} 39. Rh7 {[%emt 0:00:30]} Rf3+ {[%emt 0:00:30]} 40. Kg1 {[%emt 0:00:30]} Re3 {[%emt 0:00:30]} 41. Rbh4 {[%emt 0:00:30]} Rxe5 {[%emt 0:00:30]} 42. R4h5+ {[%emt 0:00:30]} Kf4 {[%emt 0:00:30]} 43. Rf7+ {[%emt 0:00:30]} Rf5 {[%emt 0:00:34]} 44. Rhxf5+ {[%emt 0:00:30]} exf5 {[%emt 0:00:29]} 45. Rxa7 {[%emt 0:00:30]} Bg2 {[%emt 0:00:33]} 46. Kh2 {[%emt 0:00:30]} Kf3 {[%emt 0:00:30]} 47. Ra6 {[%emt 0:00:30]} f4 {[%emt 0:00:18]} 48. Rxb6 {[%emt 0:00:00]} Ke2 {[%emt 0:00:22]} 49. Rb2+ $18 {[%emt 0:00:00]} (49. a5 $142 Kd3 50. a6) 49... Ke1 {[%emt 0:00:23]} 50. Rb1+ {[%emt 0:00:30]} Ke2 {[%emt 0:00:05]} 51. Rb2+ {[%emt 0:00:30]} Ke1 {[%emt 0:00:04]} 52. Rb1+ {[%emt 0:00:30]} Ke2 {[%emt 0:00:39]} 1/2-1/2

[Event "Istanbul Open 2018"]
[Site "Istanbul"]
[Date "2018.09.04"]
[Round "4"]
[White "Mehrinejad, Mansour"]
[Black "Mustu, Hatice Asli"]
[Result "1-0"]
[ECO "D03"]
[WhiteElo "1839"]
[BlackElo "1502"]
[Annotator "NA RC"]
[PlyCount "107"]
[EventDate "2018.09.02"]
[EventType "swiss"]
[EventCountry "TUR"]
[SourceTitle "playchess.com"]
[Source "ChessBase"]
[SourceQuality "1"]
[TimeControl "5400+30"]

{[%evp 8,78,47,11,11,15,14,16,27,7,17,20,23,12,11,22,32767,32767,32767,16,34,32,29,56,58,59,81,68,101,97,121,58,58,65,86,77,86,0,10,13,3,8,168,35,145,146,162,167,210,167,160,151,149,147,159,18,141,32767,131,32767,199,32767,217,195,150,218,32767,147,131,164,114,32767,116]} 1. d4 {[%emt 0:00:30]} d5 {[%emt 0:00:30]} 2. Bg5 {[%emt 0:00:30]} Nf6 {[%emt 0:00:30]} 3. Nf3 {[%emt 0:00:30]} Bf5 {[%emt 0:00:30]} 4. e3 {[%emt 0:00:00]} h6 {[%emt 0:00:30] D03: 1 d4 d5 2 Nf3 Nf6 3 Bg5, including Torre Attack with early ...d5} 5. Bh4 {[%emt 0:01:00]} (5. Bxf6 $5 exf6 6. Bd3 $11) 5... e6 {[%emt 0:02:30]} 6. Bd3 {[%emt 0:00:30]} Bxd3 {[%emt 0:06:30]} 7. Qxd3 {[%emt 0:00:00]} c6 {[%emt 0:01:30]} 8. Nbd2 {[%emt 0:00:30]} Be7 {[%emt 0:02:30]} 9. O-O {[%emt 0:00:30]} O-O {[%emt 0:00:30]} 10. c4 {[%emt 0:01:30]} Nbd7 {[%emt 0:01:30]} 11. Rfd1 $146 {[%emt 0:07:30]} ({Predecessor:} 11. Rac1 a5 {½-½ (80) Harika,D (2507)-Muzychuk,M (2524) Khanty-Mansiysk 2014}) 11... Re8 {[%emt 0:01:30]} 12. a3 {[%emt 0:01:30]} Qc7 {[%emt 0:02:30]} 13. b4 {[%emt 0:01:30]} Rad8 {[%emt 0:01:30]} 14. Rac1 {[%emt 0:08:30]} Qb8 {[%emt 0:02:30]} 15. c5 {[%emt 0:00:30]} a6 {[%emt 0:01:30]} 16. Bg3 {[%emt 0:01:30]} Qc8 {[%emt 0:00:30]} 17. h3 {[%emt 0:00:30]} Nh5 {[%emt 0:02:30]} 18. Bh2 {[%emt 0:00:00]} g6 {[%emt 0:01:30]} 19. Ne5 {[%emt 0:04:30]} (19. a4 $16) 19... Nxe5 {[%emt 0:01:30]} 20. Bxe5 {[%emt 0:00:30]} Bf6 {[%emt 0:02:30]} 21. g4 {[%emt 0:07:30]} Bxe5 {[%emt 0:00:30]} 22. gxh5 {[%emt 0:00:30]} (22. dxe5 $16 Ng7 23. Qd4) 22... Bg7 {[%emt 0:00:30]} 23. hxg6 {[%emt 0:00:30]} fxg6 {[%emt 0:00:30]} 24. Qxg6 {[%emt 0:47:00]} Kh8 $2 {[%emt 0:00:30]} (24... e5 $1 $11 {and Black stays safe.}) 25. Qh5 {[%emt 0:08:30]} (25. f4 $18) 25... Rf8 {[%emt 0:42:30] [#]} (25... e5 $14) 26. f4 $1 {[%emt 0:00:30]} Rf5 {[%emt 0:00:30]} 27. Qh4 {[%emt 0:03:30]} Kh7 {[%emt 0:00:30]} (27... Rd7 $16) 28. Kh2 {[%emt 0:01:30]} Bf6 {[%emt 0:01:30]} 29. Qf2 {[%emt 0:03:30]} e5 {[%emt 0:02:30]} 30. dxe5 {[%emt 0:00:30]} Bxe5 {[%emt 0:00:30]} 31. Nf3 {[%emt 0:01:30]} (31. Rg1 $16) 31... Rh5 {[%emt 0:04:30]} (31... Rxf4 $1 $11 {remains equal.} 32. exf4 (32. Qc2+ Re4+ 33. Nxe5 Qc7 $17) 32... Bxf4+ 33. Kh1 Qxh3+ 34. Nh2 Bxh2 35. Qc2+ (35. Qxh2 Qf3+ 36. Qg2 Qh5+ 37. Qh2 Qf3+ 38. Qg2 Qh5+ 39. Qh2 Qf3+ $11) (35. Qf7+ Kh8 $11) 35... Kh8 36. Qc3+ (36. Qxh2 Qf3+ 37. Qg2 Qh5+ 38. Qh2 Qf3+ 39. Qg2 Qh5+ 40. Qh2 Qf3+ $11) 36... Qxc3 37. Rxc3 Bc7) 32. h4 {[%emt 0:07:30]} Bf6 {[%emt 0:02:30]} 33. Rg1 {[%emt 0:01:30]} Rf8 {[%emt 0:02:30]} (33... Re8 $16 {ist eine bessere Verteidigung.} 34. Qg2 Qf5) 34. Rg2 {[%emt 0:03:30]} Rg8 {[%emt 0:01:30]} (34... Qf5 $16 35. Qg3 Kh8) 35. Rcg1 {[%emt 0:02:30]} Rxg2+ {[%emt 0:01:30]} 36. Qxg2 {[%emt 0:02:30]} ({Don't do} 36. Kxg2 Qe6) 36... Qe8 {[%emt 0:01:30]} 37. Qg4 {[%emt 0:03:30]} Qf7 {[%emt 0:00:30]} 38. Rg2 {[%emt 0:00:30]} Bh8 {[%emt 0:00:30]} 39. Kg1 {[%emt 0:03:39]} Rf5 $16 {[%emt 0:01:30]} 40. Rf2 Qg6 41. Qxg6+ Kxg6 42. Kg2 Kf7 43. Kg3 Ke7 44. Kg4 Ke6 45. Re2 h5+ 46. Kg3 Rf8 47. Ng5+ Kf5 48. Kf3 Bf6 49. e4+ dxe4+ 50. Nxe4 Bxh4 51. Nd6+ {[%emt 1:46:50]} Kf6 {[%emt 1:28:30]} 52. Rh2 {[%emt 0:01:16]} Be1 {[%emt 0:00:30]} 53. Rh1 {[%emt 0:00:12]} Bxb4 {[%emt 0:00:30]} 54. axb4 {[%emt 0:00:13]} 1-0

[Event "Istanbul Open 2018"]
[Site "Istanbul"]
[Date "2018.09.04"]
[Round "4"]
[White "Gonullu, Muhammed Sinan"]
[Black "Makaraci, Tunahan"]
[Result "1/2-1/2"]
[ECO "D02"]
[WhiteElo "1816"]
[BlackElo "1946"]
[Annotator "NA RC"]
[PlyCount "45"]
[EventDate "2018.09.02"]
[EventType "swiss"]
[EventCountry "TUR"]
[SourceTitle "playchess.com"]
[Source "ChessBase"]
[SourceQuality "1"]
[TimeControl "5400+30"]

{[%evp 8,41,5,3,4,0,32767,32767,32767,32767,32767,32767,32767,32767,32767,32767,32767,32767,32767,-7,0,-9,0,-7,-5,0,0,0,0,0,0,32767,0,0,52,0]} 1. d4 {[%emt 0:00:30]} e6 {[%emt 0:05:30]} 2. Nf3 {[%emt 0:00:00]} d5 {[%emt 0:00:30]} 3. Bf4 {[%emt 0:00:00]} c5 {[%emt 0:00:00]} 4. c3 {[%emt 0:00:30]} Nc6 {[%emt 0:00:00]} 5. e3 {[%emt 0:00:00]} Nf6 {[%emt 0:01:30] LiveBook: 945 Games} 6. Nbd2 {[%emt 0:01:00]} Bd6 {[%emt 0:02:30]} 7. Bxd6 {[%emt 0:00:30]} Qxd6 {[%emt 0:00:30]} 8. Be2 {[%emt 0:00:30]} O-O {[%emt 0:00:30]} 9. O-O {[%emt 0:00:00]} e5 {[%emt 0:00:30]} 10. dxe5 {[%emt 0:00:00]} Nxe5 {[%emt 0:00:00]} 11. Nxe5 {[%emt 0:00:00]} Qxe5 {[%emt 0:00:00]} 12. Nf3 {[%emt 0:00:00] D02: Damenbauernspiele} Qc7 {[%emt 0:00:30]} 13. c4 {[%emt 0:00:30]} (13. Qc2 Bg4 14. Rad1 Rad8 15. h3 Bh5 16. Rfe1 h6 17. Nd2 Bxe2 18. Rxe2 Rd6 19. Ree1 Rfd8 20. Nf3 {½-½ (20) Abramovic,B (2412)-Todorovic,G (2461) Stari Banovci 2016}) 13... Be6 $146 {[%emt 0:01:30]} ({Vorgänger:} 13... dxc4 14. Bxc4 Bg4 15. Be2 Rfd8 16. Qc2 Qa5 17. a3 Rac8 18. Rfd1 h6 19. Rxd8+ Rxd8 {0-1 (48) Kuzmin,V (1797)-Surov,S (2287) Borisoglebsk 2012}) 14. cxd5 {[%emt 0:00:30]} Bxd5 {[%emt 0:00:30]} 15. Qc2 {[%emt 0:01:30]} Rfd8 {[%emt 0:06:30]} 16. Rac1 {[%emt 0:01:30]} Rac8 {[%emt 0:00:30]} 17. h3 {[%emt 0:12:30]} (17. a3 {[%emt 0:06:30]}) 17... Qa5 {[%emt 0:00:30]} 18. a3 {[%emt 0:01:30]} Qb6 {[%emt 0:00:30]} 19. Rfd1 {[%emt 0:00:30]} Qe6 {[%emt 0:00:30]} 20. Bc4 {[%emt 0:21:00]} h6 {[%emt 1:03:00]} 21. Bxd5 $11 {[%emt 0:00:30]} Rxd5 {[%emt 0:00:30]} 22. Rxd5 {[%emt 0:00:30]} Qxd5 {[%emt 0:00:30]} 23. Rd1 {[%emt 0:00:00]} (23. Nh4) 1/2-1/2